Cogmind - Beta 12 @@@ ROGUE MODE // 2023.03.20 @ 19:42:00 Player: TrialByFire Result: Self-destructed Performance ------------- Evolutions (4) 2000 Regions Visited (13) 2600 Robots Destroyed (109) 545 Value Destroyed (4961) 4961 Prototype IDs (15) 300 Alien Tech Used (0) 0 Bonus (1412) 1412 TOTAL SCORE: 11818 Bonus ------- High Alert Combat Kills 338 Follower Combat Kills 74 Entered Garrisons 200 Used RIF Installer 500 Aligned with FarCom 300 Cogmind --------- Core Integrity 718/850 Matter 279/300 Energy 97/100 System Corruption 1% Temperature Warm (189) Movement Hovering (28) Location -6/Zion Parts ------- > --- POWER (1) -------- (None) > --- PROPULSION (5) --- Improved Linear Gravjet Improved Linear Gravjet Improved Linear Gravjet Improved Linear Gravjet > --- UTILITY (6) ------ Advanced Targeting Computer Core Analyzer Relay Coupler [NC] (24) > --- WEAPON (3) ------- Improved Datajack > --- INVENTORY (5) ---- Improved Deuterium Engine Armored Leg Makeshift Flight Unit Nuclear Pulse Thruster Improved Surge Thruster Peak State ------------ > --- POWER ------------ Light Antimatter Reactor > --- PROPULSION ------- Armored Leg Improved Linear Gravjet Improved Linear Gravjet Improved Linear Gravjet Improved Linear Gravjet > --- UTILITY ---------- Advanced Targeting Computer Core Analyzer Hardened Medium Armor Plating Relay Coupler [NC] Relay Coupler [Grunt] Dynamic Insulation System > --- WEAPON ----------- Antimatter Cannon Antimatter Cannon Axe > --- INVENTORY -------- Improved Deuterium Engine Armored Leg Armored Leg Makeshift Flight Unit Improved Surge Thruster [Rating: 75] Favorites ----------- Power Improved Deuterium Engine Engine Improved Deuterium Engine Power Core Light Nuclear Core Reactor Light Quantum Reactor Propulsion Aluminum Leg Leg Aluminum Leg Hover Unit Improved Linear Gravjet Flight Unit VTOL Module Utility Large Storage Unit Device Kinecellerator Storage Large Storage Unit Processor Advanced Targeting Computer Hackware Hacking Suite Protection Improved Medium Armor Plating Weapon Gauss Cannon Energy Gun EM Pulse Gun Energy Cannon Heavy Ion Cannon Ballistic Gun Assault Rifle Ballistic Cannon Gauss Cannon Launcher Proton Missile Launcher Impact Weapon Impact Mace Slashing Weapon Axe Special Melee Weapon Improved Datajack Build | -11 -10 -10 -10 -9 -8 -7 -7 -7 -7 -7 -6 -6 -6 ------- Run | Jun Mat Min Exi Min Mat Fac Gar Fac Low Low Fac Low Zio Slots Evolved 8 | . . . . . 4 2 . . . . 2 . . Power . | . . . . . . . . . . . . . . Propulsion 3 | . . . . . 2 . . . . . 1 . . Utility 4 | . . . . . 2 1 . . . . 1 . . Weapon 1 | . . . . . . 1 . . . . . . . Parts Attached 155 | 6 5 8 3 1 26 19 37 14 6 . 30 . . Power 18 | 1 . 3 . 1 3 1 4 3 . . 2 . . Engine 13 | 1 . 3 . . 3 1 3 1 . . 1 . . Core 3 | . . . . 1 . . 1 1 . . . . . Reactor 2 | . . . . . . . . 1 . . 1 . . Propulsion 60 | 2 . 2 2 . 15 3 15 5 . . 16 . . Treads . | . . . . . . . . . . . . . . Leg 49 | 2 . 2 2 . 14 2 11 5 . . 11 . . Wheel . | . . . . . . . . . . . . . . Hover 8 | . . . . . 1 1 1 . . . 5 . . Flight 3 | . . . . . . . 3 . . . . . . Utility 25 | 1 2 . . . 3 4 3 4 1 . 7 . . Device 9 | . 1 . . . . 3 1 1 . . 3 . . Storage 3 | 1 1 . . . . 1 . . . . . . . Processor 6 | . . . . . 2 . 2 1 . . 1 . . Hackware 3 | . . . . . 1 . . . 1 . 1 . . Protection 4 | . . . . . . . . 2 . . 2 . . Artifact . | . . . . . . . . . . . . . . Weapon 52 | 2 3 3 1 . 5 11 15 2 5 . 5 . . Energy Gun 4 | 1 . 2 . . . 1 . . . . . . . Energy Cannon 1 | . . . . . . . . . 1 . . . . Ballistic Gun 15 | 1 2 1 1 . 2 . 7 1 . . . . . Ballistic Cannon 15 | . . . . . 3 6 2 . 1 . 3 . . Launcher 1 | . . . . . . . . . 1 . . . . Special Weapon . | . . . . . . . . . . . . . . Impact Weapon 5 | . . . . . . 3 2 . . . . . . Slashing Weapon 5 | . . . . . . . 2 1 1 . 1 . . Piercing Weapon . | . . . . . . . . . . . . . . Special Melee Weapon 6 | . 1 . . . . 1 2 . 1 . 1 . . Unidentified Prototypes 6 | . . . 1 . 1 2 . 1 . . 1 . . Parts Lost 59 | . . 7 . . 8 1 18 9 3 . 7 . 6 Power 7 | . . 2 . . 1 . 2 1 . . . . 1 Propulsion 23 | . . 2 . . 6 1 9 2 . . 3 . . Utility 15 | . . 1 . . . . 3 4 1 . 3 . 3 Weapon 14 | . . 2 . . 1 . 4 2 2 . 1 . 2 Highest Loss Streak 9 | . . 7 . . 3 1 6 9 3 . 3 . 6 To Critical Strikes 3 | . . . . . . . 1 2 . . . . . Average Slot Usage (%) 95 | . 99 89 80 71 93 99 95 96 96 100 96 100 99 Engine 6 | . 14 12 14 1 7 7 6 5 . . 2 . . Reactor 1 | . . . . . . . . 1 7 7 3 6 6 Leg 27 | . 28 28 28 28 35 29 21 29 30 30 28 6 6 Hover 1 | . . . . . . . 1 . . . 4 26 26 Device 6 | . 13 5 . . . 13 7 6 1 . 4 6 5 Storage 7 | . 14 14 14 14 9 7 7 7 7 7 . . . Processor 9 | . . . . . 17 8 14 13 7 7 10 13 13 Hackware 6 | . . . . . 7 7 7 5 5 7 13 13 13 Protection 2 | . . . . . . . . 1 15 15 6 6 6 Energy Gun 1 | . . 17 18 . . . . . . . . . . Ballistic Gun 8 | . 27 10 4 14 8 . 12 19 . . . . . Ballistic Cannon 5 | . . . . . 5 20 3 . . 7 8 13 13 Slashing Weapon 1 | . . . . . . . 1 1 7 7 4 . . Special Melee Weapon 1 | . . . . . . . . . 5 7 5 6 6 Naked Turns . | . . . . . . . . . . . . . . Heaviest Build 67 | 13 30 30 33 35 42 53 50 57 67 58 58 39 39 Greatest Support 78 | 20 20 20 20 20 48 53 75 65 55 55 78 40 40 Greatest Overweight (x) 13 | 1 1 2 1 1 1 1 13 1 1 1 3 . . Average Overweight (x) . | . . 1 1 1 . . . . . 1 . . . Largest Inventory Capacity 15 | 8 15 15 15 15 15 15 15 15 15 15 15 5 5 Average Capacity 13 | 7 14 15 15 15 15 15 15 15 15 15 6 5 5 Most Carried 15 | 8 13 15 12 13 15 15 15 15 15 15 15 5 5 Average Carried 11 | 4 10 11 9 12 13 14 14 14 12 15 6 5 5 Final Capacity 15 | 8 15 15 15 15 15 15 15 15 15 15 5 5 5 Final Carried 15 | 6 13 9 11 13 15 14 15 12 15 15 5 5 5 Class Distribution -------------------- 51% | Mutant 33% | Scavenger-Mutant 7% | Scavenger-Gunner 5% | Gunner Dominant Class ---------------- Mutant | -10/Materials Mutant | -10/Mines Mutant | -10/Exiles Mutant | -9/Mines Scavenger-Mutant | -8/Materials Gunner | -7/Factory Mutant | -7/Garrison Scavenger-Gunner | -7/Factory Scavenger-Mutant | -7/Lower Caves Scavenger-Mutant | -7/Lower Caves Scavenger-Mutant | -6/Factory Mutant | -6/Lower Caves Mutant | -6/Zion Resources | -11 -10 -10 -10 -9 -8 -7 -7 -7 -7 -7 -6 -6 -6 ----------- Run | Jun Mat Min Exi Min Mat Fac Gar Fac Low Low Fac Low Zio Matter Collected 4054 | 178 326 161 . 127 741 175 1253 362 140 11 559 21 . Remotely . | . . . . . . . . . . . . . . Salvage Created 4102 | . 363 127 . 127 894 130 1180 235 332 . 714 . . Parts 185 | . 23 4 . 6 39 10 62 8 9 . 24 . . Haulers Intercepted 1 | . 1 . . . . . . . . . . . . Recyclers Shooed . | . . . . . . . . . . . . . . Parts Field Recycled . | . . . . . . . . . . . . . . Retrieved Matter . | . . . . . . . . . . . . . . Parts Self-Destructed 14 | . . . . . . . . . 14 . . . . Prevented 4 | . . . . . . . . . 2 . . 2 . Kills | -11 -10 -10 -10 -9 -8 -7 -7 -7 -7 -7 -6 -6 -6 ------- Run | Jun Mat Min Exi Min Mat Fac Gar Fac Low Low Fac Low Zio Combat Hostiles Destroyed 106 | . 11 8 . 3 24 4 28 5 7 . 16 . . Melee 8 | . . . . . . 1 2 . 2 . 3 . . Guns 62 | . 11 8 . 3 14 . 21 5 . . . . . Cannons 29 | . . . . . 10 3 5 . . . 11 . . AOE 6 | . . . . . . . . . 4 . 2 . . Classes Destroyed 14 | . 4 2 . . 3 2 2 1 . . . . . Builder 1 | . . . . . 1 . . . . . . . . Hauler 1 | . 1 . . . . . . . . . . . . Recycler 4 | . . . . . 2 . . . . . 2 . . Watcher 2 | . 1 . . . 1 . . . . . . . . Swarmer 38 | . 6 2 . . 10 1 11 . 2 . 6 . . Grunt 46 | . 5 . . 3 11 . 12 1 4 . 10 . . Brawler 3 | . . . . . . . . 3 . . . . . Duelist 1 | . . . . . . . 1 . . . . . . Sentry 6 | . . . . . 3 . 1 1 1 . . . . Demolisher 1 | . . 1 . . . . . . . . . . . Specialist 1 | . . . . . . . 1 . . . . . . Hunter 2 | . . . . . . 1 1 . . . . . . Programmer 3 | . . . . . . 2 1 . . . . . . Assembled 5 | . . 5 . . . . . . . . . . . Best Kill Streak 7 | . 3 5 . 3 7 1 4 4 5 . 4 . . Combat Bots Only 6 | . 3 5 . 3 6 1 4 4 5 . 4 . . Max Kills in Single Turn 2 | . 1 1 . 1 1 1 1 1 2 . 2 . . Gunslinging . | . . . . . . . . . . . . . . Exploded 2 | . . . . . . . . . 2 . 2 . . Melee 1 | . . . . . . 1 1 . 1 . 1 . . Uniques/NPCs Destroyed . | . . . . . . . . . . . . . . Combat | -11 -10 -10 -10 -9 -8 -7 -7 -7 -7 -7 -6 -6 -6 -------- Run | Jun Mat Min Exi Min Mat Fac Gar Fac Low Low Fac Low Zio Damage Taken 9112 | . 231 832 . 57 1545 195 2508 776 652 . 1361 . 955 Core 1053 | . 7 221 . 14 142 . 448 72 17 . 64 . 68 Absorbed by Shields . | . . . . . . . . . . . . . . Regen/Repaired (Parts) 191 | . . . . . . . . . . . 191 . . Core Remaining (%) 50 | 100 . . . 3 74 . . . . 23 . . . Volleys Fired 281 | . 32 28 . . 70 11 70 23 7 . 37 . 3 Largest 3 | . 2 2 . . 2 3 3 3 2 . 2 . 2 Hottest 144 | . 40 80 . . 96 144 96 83 67 . 80 . 80 Shots Fired 596 | . 64 56 . 11 174 19 155 50 7 . 54 . 6 Gun 418 | . 64 56 . 11 107 . 129 50 1 . . . . Cannon 172 | . . . . . 67 19 26 . . . 54 . 6 Launcher 6 | . . . . . . . . . 6 . . . . Special . | . . . . . . . . . . . . . . Kinetic 578 | . 64 44 . 11 174 19 155 50 1 . 54 . 6 Thermal . | . . . . . . . . . . . . . . Explosive . | . . . . . . . . . . . . . . Electromagnetic 18 | . . 12 . . . . . . 6 . . . . Robot Hit Streak 22 | . 6 9 . 1 20 7 22 11 5 . 21 . 13 Robot Miss Streak 8 | . 3 3 . 2 5 1 5 8 6 . 2 . . Penetration Max 1 | . . . . . . . 1 . . . . . . Secondary Targets 6 | . . 3 . . . . 3 . . . . . . Max Gunslinging Chain 1 | . . 1 . . . . 1 . . . . . . Autonomous 46 | . . . . 11 35 . . . . . . . . Shots Hit Robots 451 | . 35 37 . 5 124 7 127 42 9 . 60 1 4 Core Hits 260 | . 21 14 . 3 51 4 87 47 8 . 24 . 1 Critical Kills 8 | . 1 . . . 5 . 2 . . . . . . Critical Parts Destroyed 13 | . . . . . 9 1 2 1 . . . . . Critical Strikes 31 | . 1 . . . 16 3 8 1 . . 2 . . Destroy 18 | . 1 . . . 15 . 1 1 . . . . . Blast 9 | . . . . . 1 2 4 . . . 2 . . Smash 4 | . . . . . . 1 3 . . . . . . Melee Attacks 96 | . . . . . . 3 44 6 8 . 34 1 . Impact 33 | . . . . . . 3 30 . . . . . . Slashing 56 | . . . . . . . 14 6 8 . 28 . . Piercing . | . . . . . . . . . . . . . . Sneak Attacks 11 | . . . . . . . 1 . . . 9 1 . Combat Hostiles 5 | . . . . . . . 1 . . . 4 . . Follow-up Attacks . | . . . . . . . . . . . . . . Damage Inflicted 11447 | . 453 458 . 139 2605 217 3878 932 415 . 2218 . 132 Guns 5733 | . 453 458 . 139 1664 . 2081 932 6 . . . . Cannons 3072 | . . . . . 941 153 500 . . . 1346 . 132 Explosions 628 | . . . . . . . . . 271 . 357 . . Melee 2014 | . . . . . . 64 1297 . 138 . 515 . . Ramming . | . . . . . . . . . . . . . . Kinetic 8696 | . 453 349 . 139 2605 153 2581 932 6 . 1346 . 132 Thermal 357 | . . . . . . . . . . . 357 . . Explosive . | . . . . . . . . . . . . . . Electromagnetic 380 | . . 109 . . . . . . 271 . . . . Impact 463 | . . . . . . 64 399 . . . . . . Slashing 1551 | . . . . . . . 898 . 138 . 515 . . Piercing . | . . . . . . . . . . . . . . Highest Corruption 28 | . . . . . . 1 1 27 28 28 . . 1 Average Corruption 6 | . . . . . . 1 1 5 27 28 . . 1 Corruption Purged . | . . . . . . . . . . . . . . Corruption Blocked . | . . . . . . . . . . . . . . Effects 71 | . . . . . . 11 8 12 34 6 . . . Message Errors 23 | . . . . . . 4 2 3 13 1 . . . Matter Fused 12 | . . . . . . 4 2 . 4 2 . . . Heat Flow Errors 9 | . . . . . . . . 3 5 1 . . . Energy Discharges 9 | . . . . . . 2 2 1 3 1 . . . Data Loss (minor) 6 | . . . . . . 1 1 . 4 . . . . Data Loss (major) 4 | . . . . . . . 1 . 3 . . . . Misfires 1 | . . . . . . . . 1 . . . . . Alerts 1 | . . . . . . . . . . 1 . . . Misdirections 1 | . . . . . . . . . 1 . . . . Weapon Failures 5 | . . . . . . . . 4 1 . . . . Overload Shots . | . . . . . . . . . . . . . . Overflow Damage 366 | . . . . . 28 64 222 . . . 51 . 1 Projectiles 73 | . . . . . 28 . 11 . . . 33 . 1 Explosions . | . . . . . . . . . . . . . . Melee 293 | . . . . . . 64 211 . . . 18 . . Knockbacks 39 | . . . . . 17 . 9 . . . 13 . . Impact 1 | . . . . . . . 1 . . . . . . Kinetic 34 | . . . . . 14 . 7 . . . 13 . . Secondary 4 | . . . . . 3 . 1 . . . . . . Self-Inflicted Damage 175 | . . . . . . . 75 . 64 . 36 . . Shots 8 | . . . . . . . 1 . 6 . 1 . . Rammed . | . . . . . . . . . . . . . . Targets Rammed . | . . . . . . . . . . . . . . Kicked . | . . . . . . . . . . . . . . Crushed . | . . . . . . . . . . . . . . Highest Temperature 329 | . 2 78 . . 323 126 255 321 215 209 204 301 329 Average Temperature 96 | . 2 48 . . 95 46 62 148 63 124 41 104 163 Received Heat Transfer 1841 | . 75 20 . 33 549 . 405 135 189 . 327 . 108 Effects 5 | . . . . . . . . 1 . . . . 4 Shutdowns 1 | . . . . . . . . . . . . . 1 Energy Bleed 4 | . . . . . . . . 1 . . . . 3 Siege Activations . | . . . . . . . . . . . . . . Robots Corrupted 1 | . . . . . . . . . 1 . . . . Combat Hostiles 1 | . . . . . . . . . 1 . . . . Parts Fried 3 | . . . . . 1 . . . 2 . . . . Impact Corruptions 4 | . . . . . . 2 2 . . . . . . Robots Melted . | . . . . . . . . . . . . . . Combat Hostiles . | . . . . . . . . . . . . . . Parts Melted . | . . . . . . . . . . . . . . Heat Transferred 250 | . . . . . . . . . . . 250 . . Parts Sabotaged . | . . . . . . . . . . . . . . Parts Stolen . | . . . . . . . . . . . . . . Parts Stripped . | . . . . . . . . . . . . . . Power Chain Reactions . | . . . . . . . . . . . . . . Missiles Intercepted . | . . . . . . . . . . . . . . Alert | -11 -10 -10 -10 -9 -8 -7 -7 -7 -7 -7 -6 -6 -6 ------- Run | Jun Mat Min Exi Min Mat Fac Gar Fac Low Low Fac Low Zio Peak Influence 1090 | . 210 60 . 110 344 164 1090 616 . . 399 . . Initial 571 | . . 10 . . 42 118 7 571 . . 91 . . Average 193 | . 61 22 . 105 145 59 421 518 . . 155 . . Maximum Alert Level 3 | . 1 . . . 1 . 3 2 . . 1 . . Low Security (%) 72 | 100 97 100 . 100 77 100 43 . . . 69 . . Level 1 11 | . 2 . . . 22 . 5 4 . . 30 . . Level 2 11 | . . . . . . . 26 95 . . . . . Level 3 4 | . . . . . . . 25 . . . . . . Level 4 . | . . . . . . . . . . . . . . Level 5 . | . . . . . . . . . . . . . . High Security . | . . . . . . . . . . . . . . Max Security . | . . . . . . . . . . . . . . Squads Dispatched 14 | . 1 . . . 4 4 . 1 . . 4 . . Investigation 2 | . . . . . . 1 . . . . 1 . . Extermination 4 | . . . . . . 3 . . . . 1 . . Reinforcement 7 | . 1 . . . 4 . . . . . 2 . . Assault 1 | . . . . . . . . 1 . . . . . Garrison . | . . . . . . . . . . . . . . Intercept . | . . . . . . . . . . . . . . Searches Triggered . | . . . . . . . . . . . . . . Construction Impeded 2 | . . . . . 2 . . . . . . . . Haulers Reinforced . | . . . . . . . . . . . . . . Active Scanning Responses . | . . . . . . . . . . . . . . Cargo Convoy Interrupts . | . . . . . . . . . . . . . . Stealth | -11 -10 -10 -10 -9 -8 -7 -7 -7 -7 -7 -6 -6 -6 --------- Run | Jun Mat Min Exi Min Mat Fac Gar Fac Low Low Fac Low Zio Distress Signals 5 | . 1 . . . 2 . . . . . 2 . . Communications Jammed . | . . . . . . . . . . . . . . Distress Signals . | . . . . . . . . . . . . . . Times Spotted 192 | . 20 10 . 3 39 5 38 6 7 . 30 2 32 Peak Tracking Total 22 | . 3 9 . 3 6 1 4 5 7 . 5 3 22 Tactical Retreats 19 | . 2 1 . . 5 . 2 . . . 3 2 4 Traps | -11 -10 -10 -10 -9 -8 -7 -7 -7 -7 -7 -6 -6 -6 ------- Run | Jun Mat Min Exi Min Mat Fac Gar Fac Low Low Fac Low Zio Traps Triggered 7 | . . . . . . 3 2 . . . 2 . . Indirectly . | . . . . . . . . . . . . . . Trap Hack Attempts 38 | . 5 . . . . 14 19 . . . . . . Triggered . | . . . . . . . . . . . . . . Disarmed 15 | . 12 . . . . 2 1 . . . . . . Reprogrammed 2 | . 1 . . . . . 1 . . . . . . Reused . | . . . . . . . . . . . . . . Traps Extracted . | . . . . . . . . . . . . . . Installed . | . . . . . . . . . . . . . . Triggered 1 | . . . . . . . . . . . . 1 . Machines | -11 -10 -10 -10 -9 -8 -7 -7 -7 -7 -7 -6 -6 -6 ---------- Run | Jun Mat Min Exi Min Mat Fac Gar Fac Low Low Fac Low Zio Machines Disabled 17 | . . . . 2 3 . 8 . 1 . 3 . . Max in Single Turn 2 | . . . . 1 1 . 2 . 1 . 2 . . Garrison Access 3 | . . . . . . . . 1 . . 2 . . Garrison Relay 4 | . . . . . . . 4 . . . . . . Phase Generator 1 | . . . . . . . 1 . . . . . . Machines Repaired . | . . . . . . . . . . . . . . Machines Sabotaged . | . . . . . . . . . . . . . . Overloaded Fab Kills . | . . . . . . . . . . . . . . Hacking | -11 -10 -10 -10 -9 -8 -7 -7 -7 -7 -7 -6 -6 -6 --------- Run | Jun Mat Min Exi Min Mat Fac Gar Fac Low Low Fac Low Zio Machines Accessed 41 | . 9 . 1 . 6 7 1 3 1 . 13 . . Terminals 22 | . 7 . . . 5 3 1 1 1 . 4 . . Fabricators 3 | . . . . . . 2 . . . . 1 . . Repair Stations 4 | . . . . . 1 . . 1 . . 2 . . Recycling Units 5 | . 2 . . . . . . . . . 3 . . Scanalyzers 2 | . . . . . . 1 . . . . 1 . . Garrison Access 4 | . . . . . . 1 . 1 . . 2 . . Total Hacks 97 | . 24 . 4 . 15 16 2 4 4 . 28 . . Successful 62 | . 17 . 4 . 8 8 . 3 4 . 18 . . Failed 35 | . 7 . . . 7 8 2 1 . . 10 . . Catastrophic 4 | . . . . . . 1 . . . . 3 . . Database Lockouts . | . . . . . . . . . . . . . . Manual 23 | . 5 . 1 . 4 6 . 2 . . 5 . . Terminals 63 | . 21 . . . 13 10 2 1 4 . 12 . . Fabricators 4 | . . . . . . 2 . . . . 2 . . Repair Stations 11 | . . . . . 2 . . 2 . . 7 . . Recycling Units 7 | . 3 . . . . . . . . . 4 . . Scanalyzers 3 | . . . . . . 2 . . . . 1 . . Garrison Access 5 | . . . . . . 2 . 1 . . 2 . . Terminal Hacks 32 | . 11 . 4 . 4 3 . . 4 . 6 . . Record 10 | . . . 4 . . . . . 4 . 2 . . Part Schematic 1 | . . . . . . 1 . . . . . . . Prototype ID Bank 3 | . 2 . . . . . . . . . 1 . . Branch Access Points 2 | . . . . . 1 . . . . . 1 . . Emergency Access Points 4 | . 2 . . . . 1 . . . . 1 . . Repair Station Index 1 | . 1 . . . . . . . . . . . . Locate Traps 4 | . 2 . . . 1 1 . . . . . . . Disarm Traps 2 | . 2 . . . . . . . . . . . . Dispatch Records 1 | . . . . . 1 . . . . . . . . Maintenance Status 1 | . . . . . 1 . . . . . . . . Reinforcement Status 1 | . 1 . . . . . . . . . . . . Zone Layout 2 | . 1 . . . . . . . . . 1 . . Fabricator Hacks 3 | . . . . . . 1 . . . . 2 . . Network Status 2 | . . . . . . 1 . . . . 1 . . Build 1 | . . . . . . . . . . . 1 . . Repair Station Hacks 7 | . . . . . 1 . . 1 . . 5 . . Scan Component 5 | . . . . . 1 . . 1 . . 3 . . Repair 2 | . . . . . . . . . . . 2 . . Recycling Unit Hacks 5 | . 3 . . . . . . . . . 2 . . Report Inventory 4 | . 2 . . . . . . . . . 2 . . Retrieve Components 1 | . 1 . . . . . . . . . . . . Scanalyzer . | . . . . . . . . . . . . . . Garrison Access Hacks 4 | . . . . . . 1 . 1 . . 2 . . Unlock Access 1 | . . . . . . 1 . . . . . . . Seal Access 3 | . . . . . . . . 1 . . 2 . . Unauthorized Hacks 11 | . 3 . . . 3 3 . 1 . . 1 . . Terminals 10 | . 3 . . . 3 2 . 1 . . 1 . . Botnet 10 | . 3 . . . 3 2 . 1 . . 1 . . Fabricators . | . . . . . . . . . . . . . . Repair Stations . | . . . . . . . . . . . . . . Recycling Units . | . . . . . . . . . . . . . . Scanalyzers 1 | . . . . . . 1 . . . . . . . Extract 1 | . . . . . . 1 . . . . . . . Garrison Access . | . . . . . . . . . . . . . . Data Cores Recovered . | . . . . . . . . . . . . . . Used . | . . . . . . . . . . . . . . Hacking Detections 28 | . 4 . . . 5 5 1 2 1 . 10 . . Full Trace Events 1 | . . . . . . . . . 1 . . . . Feedback Events . | . . . . . . . . . . . . . . Feedback Blocked . | . . . . . . . . . . . . . . Robot Schematics Acquired . | . . . . . . . . . . . . . . Robots Built . | . . . . . . . . . . . . . . Authchips . | . . . . . . . . . . . . . . Time . | . . . . . . . . . . . . . . Total Robot Build Rating . | . . . . . . . . . . . . . . Part Schematics Acquired 2 | . . . . . . 2 . . . . . . . Parts Built 2 | . . . . . . . . . . . 2 . . Authchips . | . . . . . . . . . . . . . . Time 128 | . . . . . . . . . . . 128 . . Total Part Build Rating 16 | . . . . . . . . . . . 16 . . Parts Repaired 2 | . . . . . . . . . . . 2 . . Time 100 | . . . . . . . . . . . 100 . . Parts Recycled . | . . . . . . . . . . . . . . Recycled Matter . | . . . . . . . . . . . . . . Retrieved Matter . | . . . . . . . . . . . . . . Retrieved Components 10 | . 10 . . . . . . . . . . . . Parts Scanalyzed . | . . . . . . . . . . . . . . Part Schematics Acquired . | . . . . . . . . . . . . . . Parts Damaged . | . . . . . . . . . . . . . . Bothacking | -11 -10 -10 -10 -9 -8 -7 -7 -7 -7 -7 -6 -6 -6 ------------ Run | Jun Mat Min Exi Min Mat Fac Gar Fac Low Low Fac Low Zio Used RIF Installer 1 | . . . . . . . 1 . . . . . . Robots Hacked 6 | . . . . . . . . . . . 6 . . Non-combat 3 | . . . . . . . . . . . 3 . . Combat 3 | . . . . . . . . . . . 3 . . Robot Hacks Applied 6 | . . . . . . . . . . . 6 . . no_distress 1 | . . . . . . . . . . . 1 . . map_earth 1 | . . . . . . . . . . . 1 . . drop_inventory 1 | . . . . . . . . . . . 1 . . reboot_system 2 | . . . . . . . . . . . 2 . . overwrite_iff 1 | . . . . . . . . . . . 1 . . Relay Couplers Released 20 | . . . . . . . 20 . . . . . . Machine Destruction 16 | . . . . . . . 16 . . . . . . Programmers 4 | . . . . . . . 4 . . . . . . Attached 2 | . . . . . . . . . 1 . 1 . . Fabnet Peak Effective % . | . . . . . . . . . . . . . . Robots Rewired . | . . . . . . . . . . . . . . Allies Hacked . | . . . . . . . . . . . . . . Hacks Repelled . | . . . . . . . . . . . . . . Allies | -11 -10 -10 -10 -9 -8 -7 -7 -7 -7 -7 -6 -6 -6 -------- Run | Jun Mat Min Exi Min Mat Fac Gar Fac Low Low Fac Low Zio Total Allies 2 | . . 1 . . . . . . . . 1 . . Largest Group 1 | . . 1 1 . . . . . . . 1 . . Highest-Rated Group 47 | . . 31 31 . . . . . . . 47 . . Highest-Rated Ally 47 | . . 31 31 . . . . . . . 47 . . Total Orders . | . . . . . . . . . . . . . . Ally Attacks 3 | . . . . . . . . . . . 3 . . Total Damage 103 | . . . . . . . . . . . 103 . . Kills 2 | . . . . . . . . . . . 2 . . Allies Corrupted . | . . . . . . . . . . . . . . Allies Melted . | . . . . . . . . . . . . . . Intel | -11 -10 -10 -10 -9 -8 -7 -7 -7 -7 -7 -6 -6 -6 ------- Run | Jun Mat Min Exi Min Mat Fac Gar Fac Low Low Fac Low Zio Robot Analysis Total . | . . . . . . . . . . . . . . Derelict Logs Recovered 1 | . . . . . . . . . 1 . . . . Drone Launches . | . . . . . . . . . . . . . . Drone Recoveries . | . . . . . . . . . . . . . . Exploration | -11 -10 -10 -10 -9 -8 -7 -7 -7 -7 -7 -6 -6 -6 ------------- Run | Jun Mat Min Exi Min Mat Fac Gar Fac Low Low Fac Low Zio Turns Passed 11455 | 60 1377 589 548 283 1606 1333 1896 660 660 133 1936 125 249 Spaces Moved 6407 | 39 667 254 286 145 720 839 859 423 322 71 1212 214 356 Core 19 | 17 . . . . . . 2 . . . . . . Treads . | . . . . . . . . . . . . . . Legs 5524 | 22 667 254 286 145 720 839 812 423 322 71 963 . . Wheels . | . . . . . . . . . . . . . . Hover 836 | . . . . . . . 17 . . . 249 214 356 Flight 28 | . . . . . . . 28 . . . . . . Fastest Speed 38 | 50 120 190 190 190 120 120 120 120 120 190 38 38 38 Average Speed 136 | 108 183 190 190 190 121 141 155 123 180 190 109 38 38 Slowest Speed 700 | 120 190 260 190 190 190 190 700 190 190 190 300 38 38 Overloaded Moves . | . . . . . . . . . . . . . . Propulsion Burnouts . | . . . . . . . . . . . . . . Robots Hopped . | . . . . . . . . . . . . . . Cave-ins Triggered . | . . . . . . . . . . . . . . Exploration Rate (%) 43 | 4 96 64 61 55 49 19 90 10 46 17 23 37 42 Regions Visited 13 Branch Regions 7 Pre-discovered Areas 2 | . . . 1 . . . . . 1 . . . . Known Exits Taken 2 | . . . . . . 1 . . . . 1 . . Unknown Exits Taken 10 | 1 1 1 1 1 1 . . 1 1 1 . 1 . Scrap Searched 5 | . . 1 . . . . . . 1 1 . 2 . Spaces Dug 37 | . . . . . . 7 11 6 . . 13 . . Terrain Destroyed 191 | . . . . 11 31 10 65 6 . . 68 . . Melee 32 | . . . . . . 2 11 6 . . 13 . . Projectile 61 | . . . . 11 31 8 2 . . . 9 . . AOE 98 | . . . . . . . 52 . . . 46 . . Terrain Rammed . | . . . . . . . . . . . . . . Walls Destroyed . | . . . . . . . . . . . . . . Machines Disabled . | . . . . . . . . . . . . . . Actions | -11 -10 -10 -10 -9 -8 -7 -7 -7 -7 -7 -6 -6 -6 --------- Run | Jun Mat Min Exi Min Mat Fac Gar Fac Low Low Fac Low Zio Total 8466 | 56 758 306 291 153 1323 972 1218 510 379 70 1712 257 461 Wait 1256 | . 28 8 . 2 469 52 138 34 20 . 360 43 102 Move 6395 | 38 666 253 285 144 719 839 858 422 321 70 1211 213 356 Hop . | . . . . . . . . . . . . . . Pick Up 150 | 12 15 5 1 4 28 17 32 7 12 . 17 . . Fast Attach 21 | . . . . . . 2 5 . 1 . 13 . . Attach 72 | 6 1 7 1 . 16 5 17 8 5 . 6 . . Detach 4 | . . 1 2 . . . . . . . 1 . . Swap 62 | . 4 1 2 1 10 12 15 6 . . 11 . . Drop 91 | . 7 3 . 2 11 17 20 4 5 . 22 . . Fire 281 | . 32 28 . . 70 11 70 23 7 . 37 . 3 Melee 96 | . . . . . . 3 44 6 8 . 34 1 . Ram . | . . . . . . . . . . . . . . Kick . | . . . . . . . . . . . . . . Crush . | . . . . . . . . . . . . . . Escape Stasis . | . . . . . . . . . . . . . . Rewire . | . . . . . . . . . . . . . . Trap 38 | . 5 . . . . 14 19 . . . . . . Miscellaneous . | . . . . . . . . . . . . . . Route ------- -11/Junkyard -10/Materials (discovered 5 exits: [*Mat x3] / [*Min x2]) -10/Mines (discovered 2 exits: [*Mat] / *Exi) -10/Exiles -9/Mines -8/Materials (discovered 2 exits: *Fac x2) -7/Factory (discovered 2 exits: *Fac / Gar) -7/Garrison (discovered 2 exits: *Fac x2) -7/Factory -7/Lower Caves -7/Lower Caves -6/Factory (discovered 2 exits: *Low x2) -6/Lower Caves -6/Zion History --------- Turn | Location | Event 15 | -11/Junkyard | Discovered new exit (range 14) 61 | -11/Junkyard | Entered Materials 72 | -10/Materials | Discovered new exit (range 16) 309 | -10/Materials | Build established: Mutant 319 | -10/Materials | Discovered new exit (range 9) 403 | -10/Materials | Discovered new exit (range 11) 1086 | -10/Materials | Discovered new exit (range 10) 1270 | -10/Materials | Discovered new exit (range 16) 1438 | -10/Materials | Entered Mines 1448 | -10/Mines | Met a Derelict bent on vengeance 1459 | -10/Mines | A weapon hastily lodged in a ceiling crevice suddenly fell to the ground 1562 | -10/Mines | Assembled infested the area 1643 | -10/Mines | Core integrity fell below 50% 1659 | -10/Mines | Core integrity fell below 20% 1705 | -10/Mines | Lost 7 parts (2p2n1u2w) 1835 | -10/Mines | Discovered new exit (range 6) 1962 | -10/Mines | Received a Mining Laser from a helpful Derelict 2018 | -10/Mines | Deemed a non-threat by the Exiles lab entrance 2018 | -10/Mines | Discovered new exit (range 5) 2027 | -10/Mines | Entered Exiles 2027 | -10/Exiles | Accompanied by 1 ally 2059 | -10/Exiles | Discovered new exit (range 14) 2082 | -10/Exiles | Met 8R-AWN 2122 | -10/Exiles | Met EX-HEX 2219 | -10/Exiles | Met EX-DEC 2264 | -10/Exiles | Learned location of Zion (-6) 2302 | -10/Exiles | Met EX-BIN 2325 | -10/Exiles | Aligned with FarCom system 2327 | -10/Exiles | Given EX-Vault access code 2372 | -10/Exiles | Opened EX-Vault 2382 | -10/Exiles | Found Prototype Ballistic Gun 2384 | -10/Exiles | Identified AWS/Gauss 2425 | -10/Exiles | Warned to stay clear of 0b10 Research branches 2575 | -10/Exiles | Left Exiles lab with AWS/Gauss 2575 | -10/Exiles | Entered Mines 2736 | -9/Mines | Found a hidden stash of uninstalled traps 2850 | -9/Mines | Discovered new exit (range 5) 2858 | -9/Mines | Entered Materials 2858 | -8/Materials | Evolved 4 slots: Propulsion x2, Utility x2 3567 | -8/Materials | Discovered new exit (range 19) 3654 | -8/Materials | Build established: Scavenger-Mutant 4159 | -8/Materials | Lost 3 parts (2n1w) 4320 | -8/Materials | Discovered new exit (range 19) 4464 | -8/Materials | Entered Factory 4464 | -7/Factory | Evolved 2 slots: Utility x1, Weapon x1 4982 | -7/Factory | Build established: Gunner 5708 | -7/Factory | Discovered new exit (range 7) 5715 | -7/Factory | Build established: Mutant 5797 | -7/Factory | Identified exit to Garrison 5797 | -7/Factory | Entered Garrison 5958 | -7/Garrison | Triggered checkpoint 5991 | -7/Garrison | Triggered checkpoint 6021 | -7/Garrison | Lost 5 parts (4n1u) 6148 | -7/Garrison | Triggered checkpoint 6211 | -7/Garrison | Lost 6 parts (1p3n2w) 6221 | -7/Garrison | Garrison Relay disabled 6445 | -7/Garrison | Lost 4 parts (1p1n2u) 6510 | -7/Garrison | Triggered checkpoint 6592 | -7/Garrison | Garrison Relay disabled 6630 | -7/Garrison | Phase Generator disabled 6630 | -7/Garrison | Discovered new exit (range 14) 6763 | -7/Garrison | Garrison Relay disabled 6876 | -7/Garrison | Build established: Scavenger-Mutant 7202 | -7/Garrison | Triggered checkpoint 7202 | -7/Garrison | Triggered checkpoint 7224 | -7/Garrison | Core integrity fell below 50% 7357 | -7/Garrison | Garrison Relay disabled 7431 | -7/Garrison | Discovered new exit (range 11) 7442 | -7/Garrison | Installed Relay Interface Framework 7534 | -7/Garrison | Build established: Scavenger-Gunner 7693 | -7/Garrison | Entered Factory 8093 | -7/Factory | First assault squad dispatched 8158 | -7/Factory | Discovered new exit (range 9) 8233 | -7/Factory | System corruption reached 10% 8307 | -7/Factory | Lost 9 parts (1p2n4u2w) 8353 | -7/Factory | Entered Lower Caves 8416 | -7/Lower Caves | Attracted the attention of an 0b10 base 8495 | -7/Lower Caves | Lost 3 parts (1u2w) 8517 | -7/Lower Caves | Learned Research trap positions 8517 | -7/Lower Caves | Learned Extension emergency access door positions 8517 | -7/Lower Caves | Learned Armory stockpile data 8517 | -7/Lower Caves | Learned Extension garrison access intel 8562 | -7/Lower Caves | Build established: Scavenger-Mutant 8901 | -7/Lower Caves | Encountered a Warlord checkpoint 8985 | -7/Lower Caves | Discovered new exit (range 16) 9013 | -7/Lower Caves | Entered another Lower Caves area 9014 | -7/Lower Caves | Encountered a Warlord checkpoint 9095 | -7/Lower Caves | Discovered new exit (range 4) 9146 | -7/Lower Caves | Entered Factory 9146 | -6/Factory | Evolved 2 slots: Propulsion x1, Utility x1 10049 | -6/Factory | Lost 3 parts (2n1u) 10212 | -6/Factory | Fabricated Arm. Heavy Treads? 10488 | -6/Factory | Spotted B-75 Beast 10619 | -6/Factory | Build established: Mutant 10787 | -6/Factory | Identified exit to Lower Caves 11013 | -6/Factory | Repaired Imp. Linear Gravjet 11052 | -6/Factory | Repaired Hrd. Medium Armor Plating 11082 | -6/Factory | Entered Lower Caves 11205 | -6/Lower Caves | A Derelict revealed a hidden shortcut to a safe place 11207 | -6/Lower Caves | Entered Zion 11268 | -6/Zion | RIF detected upon attempting to enter Zion 11268 | -6/Zion | Attacked by Zionites 11268 | -6/Zion | Spotted OF-0BP(B) 11268 | -6/Zion | Spotted RN-T1Z(B) 11349 | -6/Zion | CL-ANK came to Zion's defense 11456 | -6/Zion | Self-destructed Last Messages --------------- 11446_ Dynamic Insulation System destroyed. 11446_ RL-7AK(z) overheating. 11447_ RL-7AK(z) heat spikes uncontrollably. 11447_ RL-7AK(z) overheating. 11448_ RL-7AK(z) heat damages Backup Laser III. 11449_ Destroyed Flamer. 11450_ RL-7AK(z) heat damages Backup Laser III. 11450_ BD-VNL(m) repairs Hardlight Generator. 11452_ RL-7AK(z) heat damages Backup Laser III, Hardlight Generator, Backup Laser III. 11453_ RL-7AK(z) heat spikes uncontrollably. 11453_ Critical hit (Impale). 11453_ Arm. Leg severed. U8-UPM(z) bursts out of the Twisted Machinery. 11455_ Antimatter Cannon destroyed. 11455_ Relay Coupler [Grunt] destroyed. 11455_ System corrupted by crushing effect (+1). 11455_ Hrd. Medium Armor Plating destroyed. 11455_ Lgt. Antimatter Reactor destroyed. 11455_ Antimatter Cannon destroyed. Map ----- +----------------------------------------------------+ | ?????????????????????????????????????????????????? | | ?????????????????????????????????????????????????? | | ?????????????????????????????????????????????????? | | ?????????????????????????????????????????????????? | | ?????????????????????????????????????????????????? | | ??????????????????????????????????????????????#### | | ??????????????????????????????????????????????? "" | | ???????????????????????????????????#???????????#"" | | ????????????????????????????????"#""#??????????#! | | ???????????????????????????????#" " "???????????! | | ????????????????????????????????" ?????????### | | ??????????????????????????????##" ?????????# # | | ??????????????????????????????#""" ???????### | | ????????????????????????????###""" ""#######"# " | | ????????????????????????????"""" "#"""##"""" | | ????????????????????????????#"" # """""""""" | | ????????????????????????????"" " | | ?????????????????????????????""" """ | | ?????????????????######??????#""" """ | | ?????????????????#""""#???????#"" | | ?????????????????#""""#?###?###"" | | ?????????????????" X"####"###""" "" | | ?????????????????# ""#z#"z"""" ""#" ## "" | | ????????????????## """"z"z""z ""###"# # "" | | ????????????????" zzzzz%z ""#?##""""" | | ????????????????" mzz@M% "" "##?"""""#" | | ??????????####### """"zzz""""" ""#??" """""" | | ??????????#"""" """"#"z""""""" """"""?" "##"" | | ??????????#"###"###"####z#"#"""" """ "??? ""#"" | | ??????????????##??###??""""""""" "" "?"" """" | | ??????????????????????#"" """" """" | | ???????????????????????" """ | | ????????????????????????? "" | | ?????????????????????????????? | | ?????????????????????????????? """ | | ??????????????????????????????? " "" | | ???????????????????????????????"" """ "" | | ????????????????????????????????" ? """"""" | | ?????????????????????????????????""??? ? """""#" | | ????????????????????????????????????????????????#" | | ?????????????????????????????????????????????????" | | ?????????????????????????????????????????????????" | | ?????????????????????????????????????????????????# | | ?????????????????????????????????????????????????? | | ?????????????????????????????????????????????????? | | ?????????????????????????????????????????????????? | | ?????????????????????????????????????????????????? | | ?????????????????????????????????????????????????? | | ?????????????????????????????????????????????????? | | ?????????????????????????????????????????????????? | +----------------------------------------------------+ Best States ------------- Heat Dissipation 39 Energy Generation 25 Energy Capacity 300 Matter Stores 300 Matter Capacity 300 Sight Range 20 Terrain Scan Density 10 EM Shielding 2 Armor Coverage 450 Weapon Cycling 15 Evasion (%) 57 Targeting Accuracy 16 Core Analysis 6 Recoil Reduction 4 Kinecelleration 30 Offensive Hacking 10 Relay Coupler Types 2 Relay Coupler Value 57 Item Schematics ----------------- Kinecellerator | -7/Factory | Hacked Reflective Plating | -7/Factory | Extracted Robot Schematics ------------------ None Fabricated ------------ Arm. Heavy Treads | x2 | -6/Factory | Preloaded Alien Tech Used ----------------- None Achievements -------------- Hunted Challenges ------------ None Game ------ Seed SignalFocalPick Manual? 0 Play Time 02:18:47 Cumulative 65.4 hours Start 2023.03.19 @ 20:21:43 End 2023.03.20 @ 19:42:00 Sessions 3 Manual Loads 0 Difficulty Rogue Special Mode None Game No. 41 Rogue 41 Adventurer 0 Explorer 0 Win Type - Total 0 Types 0/0/0/0/0/0/0/0/0 Lore% 29 Gallery% 38 Achievement% 31 Wizard Run 0 Options --------- ASCII 0 Keyboard 0 Movement Numpad Keybinds 0 Fullscreen 1 Font 24/Terminus Map View 76x50 Tactical HUD 1 Map Filters NONE Filters NONE Steam 1 RUN: 6cd072ad-9338-4a92-950c-542f6bba83d1